bitfinex/quotes_ETHUSD_20250319
["timestamp","ask_amount","ask_price","bid_price","bid_amount"]
[1742394255797,5.688,2033.6,2033.4,4.91787]
[1742394256164,5.688,2033.6,2033.5,4.91762]
[1742394257795,0.7596,2034.2,2034.1,4.91617]
[1742394257981,5.28577444,2034.2,2034.0,9.83271]
[1742394258187,5.28577444,2034.2,2034.0,4.91629]
[1742394258499,5.28577444,2034.2,2033.5,4.91762]
[1742394258500,7.23606916,2034.2,2033.5,4.91762]
[1742394258798,7.23606916,2034.2,2033.4,5.69753]
[1742394258799,4.52617444,2033.8,2033.7,4.91714]
[1742394258993,10.21417444,2033.8,2033.7,4.91714]
[1742394259197,10.21417444,2033.8,2033.6,4.91722]
[1742394259398,0.8211,2033.7,2033.5,4.91755]
[1742394259573,4.52617444,2033.6,2033.5,4.91752]
[1742394260171,4.52617444,2033.6,2033.4,4.91778]
[1742394260385,4.52617444,2033.6,2033.3,4.918]
[1742394260584,4.52617444,2033.6,2033.4,4.91767]
[1742394260798,5.688,2033.8,2033.7,4.91714]
[1742394261801,11.02777444,2033.8,2033.6,4.91724]
[1742394262095,12.62220188,2033.8,2033.6,4.91724]
[1742394262299,12.62220188,2033.8,2033.2,0.7888]
[1742394262467,4.52617444,2033.6,2033.4,4.91779]
[1742394262672,4.52617444,2033.6,2033.4,9.83552]
[1742394262883,4.52617444,2033.6,2033.5,4.91762]
[1742394263084,12.62220188,2033.8,2033.6,4.91724]
[1742394263491,5.693692,2033.5,2033.2,4.91819]
[1742394263695,5.687,2033.4,2033.3,4.9179]
[1742394264201,10.21317444,2033.4,2033.2,4.91833]
[1742394264406,5.687,2033.4,2033.3,4.91811]
[1742394265171,0.8136,2033.8,2033.7,4.91714]
[1742394265431,6.5006,2033.8,2033.7,4.91714]
[1742394265608,11.02677444,2033.8,2033.7,4.91714]
[1742394265776,11.02677444,2033.8,2033.6,4.9173]
[1742394265777,12.12945188,2033.8,2033.3,0.7862]
[1742394266106,12.12945188,2033.8,2033.7,4.91714]
[1742394266305,11.02677444,2033.8,2033.6,4.91726]
[1742394266505,10.21317444,2033.8,2033.7,4.91714]
[1742394267111,10.21317444,2033.8,2033.6,4.91726]
[1742394267321,10.21317444,2033.8,2033.7,4.91714]
[1742394267902,10.21317444,2033.8,2033.6,4.91736]
[1742394268102,12.29583488,2033.8,2033.7,4.91714]
[1742394268525,5.687,2033.8,2033.7,4.91714]
[1742394269025,5.686,2034.1,2034.0,4.91627]
[1742394269590,5.33587444,2034.6,2034.3,4.91559]
[1742394269796,5.686,2034.5,2034.1,4.91594]
[1742394270124,9.21768017,2034.4,2034.0,4.91641]
[1742394270329,5.34547444,2034.2,2033.9,9.83313]
[1742394270526,5.686,2034.1,2033.9,9.83313]
[1742394270823,4.58763212,2034.0,2033.9,4.9165]
[1742394271126,5.686,2034.1,2033.9,9.83303]
[1742394271328,10.21217444,2034.1,2034.0,4.91642]
[1742394271625,0.8193,2034.2,2034.0,4.91642]
[1742394271812,10.21117444,2034.1,2034.0,4.91642]
[1742394272018,10.21117444,2034.1,2033.4,0.7768]
[1742394272213,4.52617444,2033.8,2033.6,4.91716]
[1742394272420,4.52617444,2033.8,2033.7,4.91714]
[1742394272727,10.21117444,2033.8,2033.7,4.91714]
[1742394273242,10.21117444,2033.8,2033.6,4.91716]
[1742394273525,5.685,2033.8,2033.7,4.91714]
[1742394273892,5.685,2033.8,2033.6,4.91716]
[1742394273893,10.98147444,2033.8,2033.6,4.91716]
[1742394274091,10.98147444,2033.8,2033.2,4.91813]
[1742394274092,16.91953188,2033.8,2033.4,4.91769]
[1742394274298,4.52617444,2033.6,2033.5,4.91754]
[1742394274521,12.00259188,2033.8,2033.6,4.91715]
[1742394274722,12.00259188,2033.8,2033.5,4.9176]
[1742394275105,10.98147444,2033.8,2033.6,4.91723]
[1742394275438,8.685,2033.8,2033.7,4.91714]
[1742394275619,5.34067444,2034.0,2033.9,4.91666]
[1742394275819,10.21017444,2034.0,2033.9,4.91666]
[1742394276503,5.684,2034.0,2033.9,4.91666]
[1742394276733,8.33067444,2034.2,2034.1,4.91617]
[1742394277029,13.21017444,2034.2,2034.0,4.9163]
[1742394277328,13.21017444,2034.2,2034.1,4.91617]
[1742394277536,8.684,2034.2,2034.1,4.91617]
[1742394277734,8.683,2034.2,2034.1,4.91617]
[1742394278794,13.20917444,2034.2,2034.0,4.9163]
[1742394279102,15.10323488,2034.2,2034.0,9.83258]
[1742394279303,15.10323488,2034.2,2034.0,4.91628]
[1742394279923,13.20917444,2034.2,2034.0,4.91628]
[1742394280104,13.20917444,2034.2,2034.1,4.91617]
[1742394280306,4.91617,2034.1,2034.0,4.91628]
[1742394280505,13.20917444,2034.2,2033.9,4.91657]
[1742394280701,5.32607444,2034.0,2033.7,9.83418]
[1742394281022,14.00907444,2034.2,2033.5,4.91762]
[1742394281220,14.00907444,2034.2,2034.0,4.91632]
[1742394281428,15.90152688,2034.2,2034.1,4.91617]
[1742394281630,15.90052688,2034.2,2034.1,4.91617]
[1742394282399,4.63292,2034.1,2034.0,4.91626]
[1742394282632,14.00807444,2034.2,2034.1,4.91617]
[1742394283021,14.00807444,2034.2,2034.0,4.91626]
[1742394283342,0.06145599,2034.1,2033.9,4.91665]
[1742394283714,0.06145599,2034.1,2033.8,4.91677]
[1742394283715,4.91665,2033.9,2033.8,4.91677]
[1742394284037,4.52617444,2034.0,2033.8,9.83351]
[1742394284198,4.52617444,2034.0,2033.7,4.91706]
[1742394284398,4.52617444,2033.8,2033.6,4.91736]
[1742394284614,10.20717444,2033.8,2033.6,9.83462]
[1742394284825,10.20717444,2033.8,2033.7,4.91714]
[1742394285220,5.681,2033.8,2033.7,4.91714]
[1742394285972,5.681,2033.8,2033.6,4.91726]
[1742394286130,5.681,2033.8,2033.7,4.91714]
[1742394286503,16.59040968,2033.8,2033.4,4.91772]
[1742394286723,0.06147286,2033.7,2033.5,4.91755]
[1742394286919,16.59040968,2033.8,2033.5,4.91755]
[1742394287640,4.52617444,2033.6,2033.5,4.91761]
[1742394287844,6.18521541,2033.6,2033.2,4.91819]
[1742394288015,4.52617444,2033.4,2033.3,4.91802]
[1742394288208,4.52617444,2033.6,2033.4,4.91783]
[1742394288418,4.52617444,2033.6,2033.4,4.91786]
[1742394288637,6.30825789,2033.6,2033.3,4.9181]
[1742394288847,6.30825789,2033.6,2033.4,4.91787]
[1742394289040,6.30825789,2033.6,2033.5,4.91762]
[1742394289041,9.30825789,2033.6,2033.5,4.91762]
[1742394289238,7.52617444,2033.6,2033.5,4.91762]
[1742394290039,7.52617444,2033.6,2033.4,4.91787]
[1742394290249,7.52617444,2033.6,2033.4,4.91772]
[1742394290419,7.52617444,2033.6,2033.5,4.91762]
[1742394290616,5.32357444,2033.8,2033.7,4.91714]
[1742394290820,13.20517444,2033.8,2033.7,4.91714]
[1742394291131,7.52617444,2033.8,2033.7,4.91714]
[1742394291325,13.20517444,2033.8,2033.7,4.91714]
[1742394291519,13.20517444,2033.8,2033.6,4.91729]
[1742394291720,13.20517444,2033.8,2033.6,9.83459]
[1742394291915,13.20517444,2033.8,2033.7,4.91714]
[1742394292954,13.20517444,2033.8,2033.6,4.9172]
[1742394293158,19.70850331,2033.8,2033.5,4.91756]
[1742394293465,4.52617444,2033.6,2033.2,4.91811]
[1742394293658,5.28897444,2033.6,2033.3,4.91793]
[1742394293953,5.28897444,2033.6,2033.4,4.9177]
[1742394294459,7.52617444,2033.6,2033.5,4.91762]
[1742394294757,3.0,2033.6,2033.5,4.91762]
[1742394294928,12.60492331,2033.8,2033.7,4.91714]
[1742394294929,8.679,2033.8,2033.7,4.91714]
[1742394296153,10.20517444,2033.8,2033.7,4.91714]
[1742394296366,13.20517444,2033.8,2033.7,4.91714]
[1742394296923,4.52617444,2033.8,2033.7,4.91714]
[1742394297127,10.20317444,2033.8,2033.7,4.91714]
[1742394297657,10.20317444,2033.8,2033.5,4.91747]
[1742394297855,4.52617444,2033.6,2033.4,4.91773]
[1742394298160,4.52617444,2033.6,2033.5,4.91762]
[1742394298369,7.68064144,2033.8,2033.6,4.91738]
[1742394298370,10.20317444,2033.8,2033.6,4.91738]
[1742394298565,4.52617444,2033.8,2033.6,9.83469]
[1742394298871,5.676,2033.7,2033.6,9.83469]
[1742394299664,7.52617444,2033.8,2033.7,4.91714]
[1742394299867,13.20217444,2033.8,2033.7,4.91714]
[1742394300263,5.676,2033.8,2033.7,4.91714]
[1742394300653,10.20217444,2033.8,2033.6,4.91731]
[1742394300839,11.22853826,2033.8,2033.5,4.91759]
[1742394301039,4.52617444,2033.6,2033.5,4.91759]
[1742394301445,3.62331,2033.5,2033.1,4.91847]
[1742394301645,4.52617444,2033.3,2033.1,4.91847]
[1742394301866,4.52617444,2033.3,2033.1,4.91845]
[1742394302068,5.29137444,2033.3,2033.1,4.91845]
[1742394302282,0.06148259,2033.2,2032.8,4.91924]
[1742394302579,0.7652,2032.9,2032.6,4.91969]
[1742394302880,5.675,2032.8,2032.7,4.91938]
[1742394303448,10.20117444,2032.8,2032.6,9.8394]
[1742394303745,7.210652,2032.6,2032.1,5.70691]
[1742394303953,3.82269663,2032.7,2031.9,5.70719]
[1742394303954,4.52617444,2032.4,2031.9,5.70719]
[1742394304135,5.674,2032.3,2032.2,4.92077]
[1742394304551,5.674,2032.3,2032.1,4.92101]
[1742394304768,4.52617444,2032.2,2032.1,4.92101]
[1742394305263,4.52617444,2032.2,2032.0,4.92104]
[1742394305264,2.063043,2032.1,2032.0,4.92104]
[1742394305464,4.52617444,2032.2,2032.1,4.92101]
[1742394306288,5.674,2032.3,2032.2,4.92077]
[1742394306580,4.52617444,2032.4,2032.3,4.92053]
[1742394306811,10.20017444,2032.4,2032.3,4.92053]
[1742394307092,18.20017444,2032.4,2032.2,4.9207]
[1742394307259,18.20017444,2032.4,2032.3,4.92053]
[1742394307586,18.20017444,2032.4,2032.2,4.92061]
[1742394307889,13.674,2032.4,2032.3,4.92053]
[1742394308258,13.674,2032.4,2032.3,5.70683]
[1742394308457,8.0,2032.4,2032.3,5.70683]
[1742394309070,8.0,2032.5,2032.4,4.92029]
[1742394309987,13.674,2032.7,2032.6,4.9198]
[1742394310492,8.0,2032.7,2032.6,5.7125]
[1742394310659,5.674,2033.2,2032.9,4.91908]
[1742394310854,5.674,2033.2,2033.1,4.91859]
[1742394311259,5.30817444,2033.6,2033.5,4.91762]
[1742394311590,5.91301,2033.2,2033.1,9.83691]
[1742394311792,4.52617444,2033.3,2033.1,9.83693]
[1742394311985,4.52617444,2033.3,2033.2,4.91835]
[1742394312186,4.52617444,2033.3,2033.1,4.91845]
[1742394312187,4.52617444,2033.3,2033.1,4.91853]
[1742394312592,5.673,2033.2,2033.0,4.9187]
[1742394312962,5.673,2033.2,2033.1,4.91859]
[1742394313596,7.52617444,2033.3,2033.2,4.91835]
[1742394313786,13.19917444,2033.3,2033.2,4.91835]
[1742394314180,10.19917444,2033.3,2033.2,4.91835]
[1742394314493,13.19917444,2033.3,2033.2,4.91835]
[1742394314692,13.19917444,2033.3,2033.1,4.91855]
[1742394314896,13.19917444,2033.3,2033.1,9.83695]
[1742394315074,13.19917444,2033.3,2033.0,4.91877]
[1742394315475,13.19917444,2033.3,2032.9,4.91901]
[1742394315675,13.19917444,2033.3,2033.1,4.91845]
[1742394315883,13.19917444,2033.3,2032.7,0.7687]
[1742394316193,4.52617444,2033.1,2032.8,4.91921]
[1742394316496,4.52617444,2033.1,2032.9,4.91905]
[1742394316700,13.59117,2033.3,2032.7,0.7687]
[1742394316701,7.52617444,2033.3,2033.0,4.91862]
[1742394316994,5.671,2033.2,2033.1,4.91859]
[1742394317196,5.671,2033.2,2033.0,4.91862]
[1742394317384,5.671,2033.2,2033.0,9.83733]
[1742394317766,5.671,2033.2,2033.0,9.83735]
[1742394317966,5.671,2033.2,2033.0,4.91862]
[1742394318267,4.059284,2033.0,2032.9,4.91894]
[1742394318493,4.52617444,2033.1,2032.8,4.91932]
[1742394318798,5.671,2033.2,2033.1,4.91859]
[1742394318999,5.671,2033.2,2033.0,4.91881]
[1742394319376,4.52617444,2033.1,2032.9,4.91908]
[1742394319573,4.58765899,2033.1,2032.8,4.91931]
[1742394319776,4.52617444,2033.1,2032.8,4.91931]
[1742394319978,6.82955488,2033.1,2032.7,4.91937]
[1742394320180,4.52617444,2033.1,2032.8,4.91915]
[1742394320505,4.52617444,2033.1,2032.8,4.9193]
[1742394320867,0.8045,2033.0,2032.7,4.91944]
[1742394321101,9.44537444,2032.9,2032.5,4.92004]
[1742394321303,5.669,2032.8,2032.6,4.91961]
[1742394321472,5.669,2032.8,2032.6,5.70601]
[1742394321670,5.669,2032.8,2032.7,4.91956]
[1742394321891,5.669,2032.8,2032.6,4.91961]
[1742394322092,5.669,2032.8,2032.4,0.7864]
[1742394322397,4.52617444,2032.7,2032.5,4.91994]
[1742394322598,5.669,2032.8,2032.4,4.92029]
[1742394322799,5.669,2032.8,2032.2,3.7527]
[1742394322972,5.669,2032.8,2032.7,4.91956]
[1742394325422,5.669,2032.8,2032.6,4.91962]
[1742394325774,5.669,2032.8,2032.7,4.91956]
[1742394326080,5.669,2032.8,2032.5,4.92004]
[1742394326081,4.91956,2032.7,2032.5,4.92004]
[1742394326289,5.669,2032.8,2032.5,4.92004]
[1742394326581,5.669,2032.8,2032.6,4.91959]
[1742394326784,5.669,2032.8,2032.5,4.91997]
[1742394327177,10.64985708,2032.8,2032.4,4.92012]
[1742394327373,10.58836,2032.8,2032.4,4.92012]
[1742394327579,10.58836,2032.8,2032.5,4.92003]
[1742394327580,5.669,2032.8,2032.5,4.92003]
[1742394328428,5.669,2032.8,2032.6,4.9197]
[1742394328991,5.669,2032.8,2032.6,4.91964]
[1742394329191,5.669,2032.8,2032.7,4.91956]
[1742394329713,4.91956,2032.7,2032.5,4.92002]
[1742394329892,5.669,2032.8,2032.5,4.92002]
[1742394330093,5.669,2032.8,2032.5,9.83989]
[1742394330094,5.73049565,2032.8,2032.5,9.83989]
[1742394330289,4.52617444,2032.7,2032.4,4.92022]
[1742394330490,4.52617444,2032.7,2032.3,4.92036]
[1742394330491,4.52617444,2032.5,2032.3,4.92036]
[1742394330691,5.666,2032.4,2032.3,4.92036]
[1742394331288,5.666,2032.7,2032.5,4.91993]
[1742394331480,5.666,2032.7,2032.3,4.92039]
[1742394331697,17.20097316,2032.7,2032.3,4.92039]
[1742394331925,17.20097316,2032.7,2032.3,4.92036]
[1742394332212,10.19217444,2032.7,2032.4,4.92019]
[1742394332415,5.666,2032.7,2032.5,4.92001]
[1742394332617,10.24525444,2032.9,2032.5,9.83989]
[1742394332788,5.665,2032.6,2032.5,9.83989]
[1742394333205,5.665,2032.6,2032.5,4.91988]
[1742394333398,5.665,2032.6,2032.4,4.92026]
[1742394333599,5.72650162,2032.6,2032.4,4.92026]
[1742394333802,5.665,2032.6,2032.4,4.92026]
[1742394334091,5.72650183,2032.6,2032.4,4.92026]
[1742394334414,5.665,2032.6,2032.3,4.92036]
[1742394335415,5.665,2032.6,2032.3,4.92048]
[1742394335819,5.665,2032.6,2032.5,4.92004]
[1742394338208,10.19117444,2032.6,2032.4,4.9202]
[1742394338417,4.92041,2032.4,2031.8,0.8202]
[1742394338627,4.52617444,2032.4,2031.8,0.8202]
[1742394338930,10.19117444,2032.6,2032.3,4.92053]
[1742394339331,10.19117444,2032.6,2032.3,4.92043]
[1742394339511,10.19117444,2032.6,2032.2,0.7961]
[1742394339715,10.19117444,2032.6,2032.5,4.92004]
[1742394339716,8.665,2032.6,2032.5,4.92004]
[1742394339904,13.19117444,2032.6,2032.5,4.92004]
[1742394340302,10.19117444,2032.6,2032.5,4.92004]
[1742394341045,5.665,2032.6,2032.5,4.92004]
[1742394342727,4.52617444,2032.8,2032.5,4.92004]
[1742394342728,5.662,2032.8,2032.6,4.91957]
[1742394342930,5.662,2032.8,2032.7,4.91956]
[1742394343125,5.662,2032.8,2032.2,1.00433924]
[1742394343126,10.18817444,2032.8,2032.3,0.7938]
[1742394343313,10.18817444,2032.8,2032.6,4.91971]
[1742394343521,10.18817444,2032.8,2032.7,4.91956]
[1742394343727,10.18817444,2032.8,2032.6,4.91971]
[1742394343932,10.18817444,2032.8,2032.3,5.7143]
[1742394343933,0.8036,2032.7,2032.4,4.9202]
[1742394344111,4.52617444,2032.6,2032.3,4.92038]
[1742394344306,0.06150479,2032.5,2032.3,4.92038]
[1742394344514,5.661,2032.4,2032.3,4.92038]
[1742394344723,5.661,2032.4,2032.2,4.92074]
[1742394344928,4.92074,2032.2,2032.0,9.84239]
[1742394345132,4.52617444,2032.2,2032.1,4.92101]
[1742394345835,0.8088,2032.3,2032.1,4.92101]
[1742394346053,0.8088,2032.3,2032.1,4.9209]
[1742394346237,0.8088,2032.3,2032.0,4.92122]
[1742394346437,0.8088,2032.3,2032.0,9.84232]
[1742394346942,4.58768901,2032.2,2031.8,4.92171]
[1742394347134,4.52617444,2032.0,2031.8,4.92164]
[1742394347334,10.18617444,2032.0,2031.7,4.92185]
[1742394347514,15.10743444,2032.0,2031.6,9.84432]
[1742394347710,0.7998,2031.9,2031.6,9.84432]
[1742394348065,4.52617444,2031.8,2031.6,4.92208]
[1742394348211,4.52617444,2031.8,2031.4,4.92271]
[1742394348412,4.52617444,2031.8,2031.5,4.9223]
[1742394349230,4.52617444,2031.8,2031.3,4.92292]
[1742394349431,4.52617444,2031.6,2031.3,9.84567]
[1742394349645,10.18517444,2031.6,2031.3,9.84567]
[1742394349952,5.659,2031.6,2031.5,4.92247]
[1742394350615,5.659,2031.6,2031.4,4.92258]
[1742394351522,5.659,2031.6,2031.5,4.92247]
[1742394352114,5.659,2031.6,2031.4,4.92258]
[1742394352326,5.659,2031.6,2031.3,4.92286]
[1742394352676,5.659,2031.6,2031.3,9.84556]
[1742394352880,5.659,2031.6,2031.4,4.92258]
[1742394353373,5.659,2031.6,2031.0,0.99432251]
[1742394353374,2.265431,2031.4,2031.0,4.92358]
[1742394353533,4.58771772,2031.3,2031.0,9.84711]
[1742394353858,5.28427444,2031.5,2031.2,4.92319]
[1742394354060,5.658,2031.4,2031.2,4.92319]
[1742394354263,5.658,2031.4,2031.3,4.92295]
[1742394354838,4.52617444,2031.7,2031.6,4.92222]
[1742394355033,5.658,2031.7,2031.6,4.92222]
[1742394355390,10.18417444,2031.7,2031.5,4.92232]
[1742394355680,10.18417444,2031.7,2031.6,4.92222]
[1742394355859,8.30837444,2031.9,2031.7,4.92186]
[1742394356163,8.658,2031.8,2031.7,4.92186]
[1742394356459,0.7822,2031.9,2031.8,4.92174]
[1742394356688,5.657,2031.9,2031.8,4.92174]
[1742394357163,8.658,2032.0,2031.9,4.92126]
[1742394357359,13.18417444,2032.0,2031.8,4.92165]
[1742394357763,5.657,2032.0,2031.9,4.9215]
[1742394359157,10.98947444,2032.0,2031.9,4.9215]
[1742394359470,3.583451,2031.9,2031.8,4.92174]
[1742394359638,10.98947444,2032.0,2031.8,4.92174]
[1742394359967,10.98947444,2032.0,2031.8,4.92162]
[1742394360370,17.50180688,2032.0,2031.7,4.92193]
[1742394360569,4.52617444,2031.8,2031.5,4.92234]
[1742394360732,4.52617444,2031.8,2031.5,9.84465]
[1742394360937,4.52617444,2031.8,2031.3,5.71698]
[1742394361138,4.52617444,2031.8,2031.6,4.92203]
[1742394361471,4.52617444,2031.8,2031.7,4.92198]
[1742394361670,12.58050688,2032.0,2031.7,4.92198]
[1742394361868,10.98947444,2032.0,2031.5,4.92241]
[1742394362163,5.656,2031.9,2031.8,4.92157]
[1742394363462,0.8025,2032.4,2031.9,4.9215]
[1742394363665,10.18117444,2032.3,2032.0,4.92103]
[1742394363855,10.18117444,2032.3,2031.9,4.92146]
[1742394363856,4.52617444,2032.1,2031.9,4.92146]
[1742394364033,4.52617444,2032.1,2031.9,4.92135]
[1742394364233,4.52617444,2032.1,2031.6,4.92215]
[1742394364234,0.8025,2032.0,2031.6,4.92215]
[1742394364538,10.18117444,2031.9,2031.6,4.92209]
[1742394364767,10.18117444,2031.9,2031.6,9.84415]
[1742394365066,12.26378988,2031.9,2031.6,9.84418]
[1742394365368,12.26378988,2031.9,2031.7,4.92197]
[1742394365969,12.26378988,2031.9,2031.6,4.92216]
[1742394365970,3.913978,2031.7,2031.6,4.92216]
[1742394366170,0.06152662,2031.8,2031.6,4.92216]
[1742394366569,4.52617444,2031.7,2031.5,4.92237]
[1742394366869,0.8025,2031.6,2031.5,4.92237]
[1742394367269,0.8025,2031.8,2031.7,4.92198]
[1742394367477,0.8025,2031.8,2031.6,4.92222]
[1742394367478,2.10912899,2031.8,2031.6,4.92222]
[1742394367776,4.58770351,2031.7,2031.1,0.8246]
[1742394367989,4.52617444,2031.3,2031.1,4.92343]
[1742394368144,10.17917444,2031.3,2031.1,4.92343]
[1742394368348,10.17917444,2031.3,2030.9,0.8246]
[1742394368590,10.17917444,2031.3,2031.2,4.92319]
[1742394368749,10.17917444,2031.3,2031.1,4.92341]
[1742394368949,5.653,2031.3,2031.2,4.92319]
[1742394369368,3.8025,2031.6,2031.4,4.92248]
[1742394369684,5.653,2031.5,2031.4,4.92248]
[1742394370182,10.17917444,2031.5,2031.3,4.92278]
[1742394370481,5.652,2031.7,2031.6,4.92222]
[1742394371558,5.32867444,2032.0,2031.9,4.9215]
[1742394371559,0.8025,2032.0,2031.9,4.9215]
[1742394371753,3.15013,2031.9,2031.8,9.84327]
[1742394371965,10.98067444,2032.0,2031.9,4.9215]
[1742394372159,5.652,2032.0,2031.9,4.9215]
[1742394373862,5.651,2032.1,2032.0,4.92125]
[1742394374063,5.34947444,2032.6,2032.2,4.92077]
[1742394374264,0.8233,2032.9,2032.8,4.91932]
[1742394374484,6.4743,2032.9,2032.8,4.91932]
[1742394375615,3.784,2186.9,2032.7,4.91956]
[1742394375616,5.27677444,2033.4,2032.7,4.91956]
[1742394375759,5.29727444,2033.6,2033.4,4.9177]
[1742394375964,5.29727444,2033.6,2033.5,4.91762]
[1742394376262,1.60065018,2033.8,2033.6,4.91726]
[1742394376469,0.7711,2033.8,2033.7,4.91714]
[1742394376672,0.7711,2034.1,2034.0,4.91642]
[1742394376868,0.7711,2034.1,2033.9,4.91658]
[1742394377069,0.7711,2034.1,2033.6,4.91738]
[1742394377289,4.52617444,2033.8,2033.6,4.9173]
[1742394377498,5.649,2033.8,2033.7,4.91714]
[1742394377788,10.17517444,2033.8,2033.6,4.91728]
[1742394377989,10.17517444,2033.8,2033.4,9.83564]
[1742394378193,4.52617444,2033.6,2033.5,4.9176]
[1742394378397,5.649,2033.8,2033.7,4.91714]
[1742394379291,0.7999,2034.2,2033.9,4.91663]
[1742394379475,5.647,2034.0,2033.9,4.91663]
[1742394379675,0.7999,2034.2,2033.7,4.91707]
[1742394379860,0.7999,2034.2,2034.1,4.91617]
[1742394380066,4.91617,2034.1,2034.0,4.91638]
[1742394380287,5.647,2034.2,2034.0,4.91638]
[1742394380490,5.647,2034.2,2034.1,4.91617]
[1742394380682,5.647,2034.2,2034.0,4.91638]
[1742394380884,5.647,2034.2,2034.1,4.91617]
[1742394381086,5.647,2034.2,2034.0,4.91635]
[1742394381397,5.647,2034.2,2034.0,4.91627]
[1742394381594,5.647,2034.2,2034.1,4.91617]
[1742394381777,4.52617444,2034.3,2034.2,4.91593]
[1742394381972,0.7999,2034.5,2034.2,4.91593]
[1742394381973,5.645,2034.4,2034.3,4.91551]
[1742394382173,5.645,2034.4,2034.2,4.91589]
[1742394382366,5.32607444,2034.3,2034.0,4.9164]
[1742394382572,4.52617444,2034.1,2034.0,4.9164]
[1742394382967,4.52617444,2034.1,2033.7,4.91693]
[1742394383168,5.32607444,2033.8,2033.6,9.83458]
[1742394383384,5.32607444,2033.8,2033.6,4.91722]
[1742394383598,5.32607444,2033.8,2033.7,4.91714]
[1742394384902,4.91714,2033.7,2033.5,4.91748]
[1742394385101,5.643,2033.6,2033.5,4.91748]
[1742394386778,6.73990744,2033.6,2033.3,4.91792]
[1742394386999,5.35827444,2033.4,2033.1,4.91858]
[1742394387205,4.52617444,2033.2,2033.1,4.91858]
[1742394387407,5.35827444,2033.4,2033.3,4.91811]
[1742394387613,13.99927444,2033.4,2033.3,4.91811]
[1742394387777,5.641,2033.4,2033.3,4.91811]
[1742394387973,3.0,2033.6,2033.5,4.91758]
[1742394388174,8.641,2033.6,2033.5,4.91758]
[1742394388403,5.641,2033.6,2033.5,4.91758]
[1742394388607,8.28217444,2033.9,2033.7,4.91691]
[1742394388800,5.641,2033.8,2033.7,4.91691]
[1742394389306,5.641,2033.8,2033.6,4.9173]
[1742394389307,4.52617444,2034.1,2033.8,4.9169]
[1742394389509,5.64,2034.0,2033.9,4.91657]
[1742394389923,0.756,2034.2,2033.7,5.67702]
[1742394389924,0.756,2034.2,2034.1,4.91617]
[1742394390134,4.48952,2034.1,2034.0,4.91622]
[1742394390301,6.13494573,2034.1,2033.8,4.91667]
[1742394390502,6.13494573,2034.1,2033.4,5.73607]
[1742394390503,6.13494573,2034.1,2033.9,4.91651]
[1742394390684,6.07348937,2034.1,2033.9,4.91651]
[1742394391030,4.52617444,2034.1,2034.0,4.91642]
[1742394391601,4.52617444,2034.1,2033.9,4.91651]
[1742394391804,4.52617444,2034.1,2033.5,4.91762]
[1742394391805,4.58763381,2034.1,2033.5,4.91762]
[1742394392004,4.58763381,2034.1,2033.8,4.91683]
[1742394392189,4.52617444,2034.1,2033.8,4.91683]
[1742394392389,4.52617444,2034.1,2033.8,4.91675]
[1742394392390,6.60156588,2034.1,2033.8,4.91675]
[1742394392818,6.60156588,2034.1,2033.8,4.91678]
[1742394393203,9.44291444,2033.9,2033.5,4.91753]
[1742394393516,4.52617444,2033.6,2033.3,4.9181]
[1742394393816,5.29847444,2033.4,2032.6,0.7988]
[1742394394032,4.52617444,2033.2,2032.9,4.91896]
[1742394394318,4.58766225,2033.2,2032.9,4.91896]
[1742394394528,4.52617444,2033.2,2033.0,4.91874]
[1742394394690,4.52617444,2033.2,2032.9,4.91901]
[1742394395321,10.23010444,2033.0,2032.4,4.92016]
[1742394395622,4.52617444,2032.6,2032.5,4.91999]
[1742394395922,10.61766807,2032.9,2032.5,4.91992]
[1742394395923,4.52617444,2032.8,2032.5,4.91992]
[1742394396124,2.763874,2032.5,2032.4,4.92024]
[1742394396292,5.638,2032.5,2032.4,4.92024]
[1742394396691,5.31107444,2033.0,2032.5,4.92004]
[1742394396915,8.31107444,2033.0,2032.9,4.91908]
[1742394397117,13.94807444,2033.0,2032.9,4.91908]
[1742394397320,4.304895,2032.9,2032.8,4.91928]
[1742394397541,13.94807444,2033.0,2032.9,4.91908]
[1742394397725,10.16317444,2033.0,2032.8,4.91928]
[1742394398043,3.0,2033.1,2033.0,4.91874]
[1742394398226,4.52617444,2033.2,2033.0,4.91874]
[1742394398426,3.0,2033.3,2033.2,4.91829]
[1742394398606,5.815338,2033.1,2032.6,4.91969]
[1742394398811,4.52617444,2032.7,2032.4,4.92008]
[1742394399011,5.637,2032.6,2032.5,4.91993]
[1742394401911,5.636,2032.1,2032.0,4.92125]
[1742394402910,2.515846,2032.0,2031.9,4.92129]
[1742394403106,5.636,2032.1,2031.9,9.84259]
[1742394403541,5.636,2032.1,2032.0,4.92125]
[1742394403842,5.636,2032.1,2031.6,5.69451]
[1742394404045,4.52617444,2032.0,2031.7,4.92186]
[1742394404347,4.58769485,2032.0,2031.7,9.84369]
[1742394404517,4.52617444,2032.0,2031.8,4.92173]
[1742394404912,4.52617444,2032.0,2031.6,4.92222]
[1742394404913,4.92173,2031.8,2031.6,4.92222]
[1742394405109,5.635,2031.7,2031.5,4.92246]
[1742394405320,5.635,2031.7,2031.6,4.92222]
[1742394406124,5.636,2031.8,2031.7,5.73816]
[1742394406313,0.7646,2032.3,2032.0,4.92118]
[1742394406640,10.16117444,2032.2,2032.0,4.92118]
[1742394406851,8.28777635,2032.4,2032.2,4.92077]
[1742394406852,7.52617444,2032.4,2032.2,4.92077]
[1742394407026,7.52617444,2032.4,2032.3,4.92053]
[1742394407342,7.52617444,2032.4,2032.2,4.92077]
[1742394407343,13.16117444,2032.4,2032.2,4.92059]
[1742394407722,13.16117444,2032.4,2032.3,4.92053]